[Event "Titled Tuesday Blitz January 18 2022"]
[White "Baches Garcia, Guillermo"]
[Black "Wagner, Dennis"]
[WhiteFideId "2209764"]
[BlackFideId "24650684"]
[WhiteElo "2397"]
[BlackElo "2355"]
[Result "0-1"]
[Round "01"]
[TimeControl "180+1"]
[Date "2022.01.18"]
[WhiteClock "0:00:12"]
[BlackClock "0:00:11"]

1. e4 {[%clk 0:03:00]}  e5 {[%clk 0:02:55]} 2. Nf3 {[%clk 0:03:01]}  Nc6 {[%clk 0:02:55]} 3. Nc3 {[%clk 0:03:01]}  Nf6 {[%clk 0:02:53]} 4. d4 {[%clk 0:03:02]}  exd4 {[%clk 0:02:53]} 5. Nxd4 {[%clk 0:03:02]}  Bb4 {[%clk 0:02:53]} 6. Nxc6 {[%clk 0:03:03]}  bxc6 {[%clk 0:02:53]} 7. Bd3 {[%clk 0:03:04]}  d5 {[%clk 0:02:52]} 8. Bd2 {[%clk 0:03:04]}  O-O {[%clk 0:02:51]} 9. O-O {[%clk 0:03:04]}  a5 {[%clk 0:02:51]} 10. a3 {[%clk 0:02:55]}  Bxc3 {[%clk 0:02:31]} 11. Bxc3 {[%clk 0:02:56]}  dxe4 {[%clk 0:02:30]} 12. Bxf6 {[%clk 0:02:47]}  Qxf6 {[%clk 0:02:29]} 13. Bxe4 {[%clk 0:02:47]}  Qxb2 {[%clk 0:02:19]} 14. Bxc6 {[%clk 0:02:47]}  Ra6 {[%clk 0:02:20]} 15. Be4 {[%clk 0:02:38]}  Re8 {[%clk 0:02:09]} 16. Re1 {[%clk 0:02:24]}  Rae6 {[%clk 0:02:04]} 17. f3 {[%clk 0:01:45]}  g6 {[%clk 0:01:31]} 18. Qd2 {[%clk 0:01:32]}  Kg7 {[%clk 0:01:21]} 19. Bd3 {[%clk 0:01:21]}  Qd4+ {[%clk 0:01:17]} 20. Kh1 {[%clk 0:01:21]}  c5 {[%clk 0:00:47]} 21. Red1 {[%clk 0:00:47]}  c4 {[%clk 0:00:34]} 22. Bf1 {[%clk 0:00:46]}  Qxd2 {[%clk 0:00:33]} 23. Rxd2 {[%clk 0:00:47]}  Re1 {[%clk 0:00:33]} 24. Rdd1 {[%clk 0:00:43]}  Rxd1 {[%clk 0:00:30]} 25. Rxd1 {[%clk 0:00:44]}  c3 {[%clk 0:00:31]} 26. Kg1 {[%clk 0:00:41]}  Bf5 {[%clk 0:00:27]} 27. Rd5 {[%clk 0:00:34]}  Rc8 {[%clk 0:00:13]} 28. Bd3 {[%clk 0:00:34]}  Bxd3 {[%clk 0:00:12]} 29. Rxd3 {[%clk 0:00:35]}  Rc5 {[%clk 0:00:11]} 30. Kf2 {[%clk 0:00:34]}  Kf6 {[%clk 0:00:12]} 31. Ke3 {[%clk 0:00:33]}  Ke5 {[%clk 0:00:12]} 32. f4+ {[%clk 0:00:32]}  Ke6 {[%clk 0:00:12]} 33. Kd4 {[%clk 0:00:31]}  Rh5 {[%clk 0:00:10]} 34. h3 {[%clk 0:00:27]}  Rh4 {[%clk 0:00:10]} 35. g4 {[%clk 0:00:21]}  h5 {[%clk 0:00:09]} 36. Rxc3 {[%clk 0:00:13]}  hxg4 {[%clk 0:00:09]} 37. hxg4 {[%clk 0:00:14]}  Rxg4 {[%clk 0:00:10]} 38. Rc6+ {[%clk 0:00:12]}  Kd7 {[%clk 0:00:09]} 39. Rf6 {[%clk 0:00:12]}  Ke7 {[%clk 0:00:10]} 40. Rb6 {[%clk 0:00:12]}  Rxf4+ {[%clk 0:00:10]} 41. Ke3 {[%clk 0:00:13]}  Ra4 {[%clk 0:00:10]} 42. c4 {[%clk 0:00:12]}  Rxc4 {[%clk 0:00:10]} 43. Kd3 {[%clk 0:00:12]}  Ra4 {[%clk 0:00:10]} 44. Ra6 {[%clk 0:00:12]}  g5 {[%clk 0:00:11]} 45. Rxa5 {[%clk 0:00:12]}  Rxa5 {[%clk 0:00:11]} 0-1


[Site "https://www.chess.com"]

[Event "Titled Tuesday Blitz January 18 2022"]
[White "Belous, Vladimir"]
[Black "Babiy, Olga"]
[WhiteFideId "4174003"]
[BlackFideId "14117258"]
[WhiteElo "2534"]
[BlackElo "2252"]
[Result "1-0"]
[Round "01"]
[TimeControl "180+1"]
[Date "2022.01.18"]
[WhiteClock "0:01:21"]
[BlackClock "0:00:31"]

1. c4 {[%clk 0:03:00]}  e5 {[%clk 0:02:58]} 2. g3 {[%clk 0:02:54]}  h5 {[%clk 0:02:56]} 3. Nf3 {[%clk 0:02:45]}  e4 {[%clk 0:02:46]} 4. Nd4 {[%clk 0:02:44]}  Nc6 {[%clk 0:02:45]} 5. Nxc6 {[%clk 0:02:42]}  dxc6 {[%clk 0:02:45]} 6. Nc3 {[%clk 0:02:40]}  Nf6 {[%clk 0:02:43]} 7. Bg2 {[%clk 0:02:39]}  Bf5 {[%clk 0:02:39]} 8. Qb3 {[%clk 0:02:38]}  b6 {[%clk 0:02:33]} 9. h3 {[%clk 0:02:35]}  Bc5 {[%clk 0:02:29]} 10. Na4 {[%clk 0:02:30]}  Bd4 {[%clk 0:02:25]} 11. e3 {[%clk 0:01:52]}  Be5 {[%clk 0:02:25]} 12. d4 {[%clk 0:01:52]}  Bd6 {[%clk 0:01:56]} 13. Bd2 {[%clk 0:01:48]}  Qd7 {[%clk 0:01:46]} 14. Nc3 {[%clk 0:01:43]}  O-O-O {[%clk 0:01:33]} 15. a4 {[%clk 0:01:40]}  c5 {[%clk 0:01:26]} 16. d5 {[%clk 0:01:36]}  Qe7 {[%clk 0:01:05]} 17. a5 {[%clk 0:01:35]}  Kb8 {[%clk 0:00:55]} 18. Nb5 {[%clk 0:01:33]}  a6 {[%clk 0:00:31]} 19. axb6 {[%clk 0:01:21]}  axb5 {[%clk 0:00:31]} 20. Qa2 {[%clk 0:01:21]}  Kc8 {[%clk 0:00:31]} 21. Qa8+ {[%clk 0:01:21]} 1-0


[Site "https://www.chess.com"]

[Event "Titled Tuesday Blitz January 18 2022"]
[White "Berezin, Viktor"]
[Black "Svane, Frederik"]
[WhiteFideId "14107872"]
[BlackFideId "12923044"]
[WhiteElo "2310"]
[BlackElo "2459"]
[Result "0-1"]
[Round "01"]
[TimeControl "180+1"]
[Date "2022.01.18"]
[WhiteClock "0:01:27"]
[BlackClock "0:00:05"]

1. d4 {[%clk 0:02:59]}  Nf6 {[%clk 0:02:57]} 2. Nf3 {[%clk 0:02:57]}  e6 {[%clk 0:02:56]} 3. g3 {[%clk 0:02:57]}  b5 {[%clk 0:02:53]} 4. Bg2 {[%clk 0:02:53]}  d5 {[%clk 0:02:52]} 5. O-O {[%clk 0:02:51]}  Be7 {[%clk 0:02:53]} 6. b3 {[%clk 0:02:51]}  Bb7 {[%clk 0:02:49]} 7. Bb2 {[%clk 0:02:51]}  O-O {[%clk 0:02:49]} 8. Nbd2 {[%clk 0:02:50]}  c5 {[%clk 0:02:44]} 9. dxc5 {[%clk 0:02:43]}  Bxc5 {[%clk 0:02:45]} 10. c4 {[%clk 0:02:43]}  a6 {[%clk 0:02:09]} 11. Rc1 {[%clk 0:02:41]}  Nbd7 {[%clk 0:02:01]} 12. Ne5 {[%clk 0:02:36]}  Nxe5 {[%clk 0:01:46]} 13. Bxe5 {[%clk 0:02:36]}  Ba3 {[%clk 0:01:35]} 14. Rc2 {[%clk 0:02:33]}  Nd7 {[%clk 0:00:54]} 15. Bb2 {[%clk 0:02:16]}  Bxb2 {[%clk 0:00:48]} 16. Rxb2 {[%clk 0:02:17]}  Nb6 {[%clk 0:00:34]} 17. c5 {[%clk 0:02:11]}  Nd7 {[%clk 0:00:34]} 18. Rc2 {[%clk 0:02:10]}  Rc8 {[%clk 0:00:24]} 19. b4 {[%clk 0:02:09]}  Ne5 {[%clk 0:00:24]} 20. f4 {[%clk 0:02:05]}  Nc6 {[%clk 0:00:17]} 21. a3 {[%clk 0:02:03]}  a5 {[%clk 0:00:17]} 22. Rb2 {[%clk 0:01:59]}  Qf6 {[%clk 0:00:17]} 23. Rb3 {[%clk 0:01:52]}  Nd4 {[%clk 0:00:10]} 24. Rd3 {[%clk 0:01:49]}  Nc6 {[%clk 0:00:10]} 25. Qb1 {[%clk 0:01:42]}  Ra8 {[%clk 0:00:09]} 26. Nf3 {[%clk 0:01:40]}  axb4 {[%clk 0:00:09]} 27. axb4 {[%clk 0:01:39]}  Ra4 {[%clk 0:00:10]} 28. Rb3 {[%clk 0:01:39]}  Rfa8 {[%clk 0:00:10]} 29. Rd1 {[%clk 0:01:37]}  h6 {[%clk 0:00:10]} 30. Qc1 {[%clk 0:01:33]}  Ra1 {[%clk 0:00:10]} 31. Qd2 {[%clk 0:01:31]}  Rxd1+ {[%clk 0:00:11]} 32. Qxd1 {[%clk 0:01:31]}  Ra1 {[%clk 0:00:11]} 33. Rb1 {[%clk 0:01:32]}  Rxb1 {[%clk 0:00:12]} 34. Qxb1 {[%clk 0:01:33]}  Qc3 {[%clk 0:00:12]} 35. Qa2 {[%clk 0:01:30]}  Qxb4 {[%clk 0:00:10]} 36. Qc2 {[%clk 0:01:30]}  Qc4 {[%clk 0:00:10]} 37. Qxc4 {[%clk 0:01:30]}  bxc4 {[%clk 0:00:07]} 38. Ne1 {[%clk 0:01:30]}  Nb4 {[%clk 0:00:07]} 39. Kf2 {[%clk 0:01:28]}  Na6 {[%clk 0:00:07]} 40. Ke3 {[%clk 0:01:26]}  Nxc5 {[%clk 0:00:07]} 41. Kd4 {[%clk 0:01:27]}  Nb3+ {[%clk 0:00:08]} 42. Kc3 {[%clk 0:01:27]}  Kf8 {[%clk 0:00:06]} 43. e4 {[%clk 0:01:28]}  Ke7 {[%clk 0:00:05]} 44. exd5 {[%clk 0:01:27]}  exd5 {[%clk 0:00:06]} 45. Nc2 {[%clk 0:01:28]}  Kd6 {[%clk 0:00:05]} 46. Ne3 {[%clk 0:01:28]}  Kc5 {[%clk 0:00:05]} 47. Nf5 {[%clk 0:01:27]}  d4+ {[%clk 0:00:05]} 0-1


[Site "https://www.chess.com"]

[Event "Titled Tuesday Blitz January 18 2022"]
[White "Bettalli, Francesco"]
[Black "Narayanan.S.L"]
[WhiteFideId "2816453"]
[BlackFideId "5058422"]
[WhiteElo "2216"]
[BlackElo "2494"]
[Result "0-1"]
[Round "01"]
[TimeControl "180+1"]
[Date "2022.01.18"]
[WhiteClock "0:00:13"]
[BlackClock "0:01:31"]

1. d4 {[%clk 0:02:56]}  d5 {[%clk 0:02:58]} 2. Nf3 {[%clk 0:02:54]}  g6 {[%clk 0:02:57]} 3. e3 {[%clk 0:02:53]}  Bg7 {[%clk 0:02:57]} 4. b3 {[%clk 0:02:54]}  Nf6 {[%clk 0:02:57]} 5. Bb2 {[%clk 0:02:55]}  O-O {[%clk 0:02:57]} 6. Nbd2 {[%clk 0:02:55]}  Bg4 {[%clk 0:02:58]} 7. Bd3 {[%clk 0:02:56]}  Nbd7 {[%clk 0:02:54]} 8. O-O {[%clk 0:02:56]}  c6 {[%clk 0:02:53]} 9. h3 {[%clk 0:02:56]}  Bxf3 {[%clk 0:02:53]} 10. Nxf3 {[%clk 0:02:57]}  e6 {[%clk 0:02:53]} 11. c4 {[%clk 0:02:57]}  Ne4 {[%clk 0:02:53]} 12. Bxe4 {[%clk 0:02:55]}  dxe4 {[%clk 0:02:53]} 13. Ne5 {[%clk 0:02:56]}  Nxe5 {[%clk 0:02:25]} 14. dxe5 {[%clk 0:02:57]}  Qg5 {[%clk 0:02:25]} 15. Qd4 {[%clk 0:02:41]}  Qf5 {[%clk 0:02:23]} 16. Rad1 {[%clk 0:02:33]}  h5 {[%clk 0:02:23]} 17. f3 {[%clk 0:02:22]}  exf3 {[%clk 0:02:22]} 18. Rxf3 {[%clk 0:02:22]}  Qg5 {[%clk 0:02:23]} 19. Qf4 {[%clk 0:02:16]}  Qe7 {[%clk 0:02:22]} 20. Rd6 {[%clk 0:02:12]}  c5 {[%clk 0:01:52]} 21. Rf1 {[%clk 0:02:01]}  Rfc8 {[%clk 0:01:52]} 22. Rfd1 {[%clk 0:02:00]}  Rc7 {[%clk 0:01:53]} 23. R1d3 {[%clk 0:01:45]}  Kh7 {[%clk 0:01:51]} 24. Qf3 {[%clk 0:01:40]}  Rac8 {[%clk 0:01:44]} 25. Qd1 {[%clk 0:01:31]}  Qg5 {[%clk 0:01:43]} 26. Rd8 {[%clk 0:00:41]}  Rxd8 {[%clk 0:01:37]} 27. Rxd8 {[%clk 0:00:42]}  Qxe3+ {[%clk 0:01:37]} 28. Kh1 {[%clk 0:00:40]}  b5 {[%clk 0:01:35]} 29. cxb5 {[%clk 0:00:35]}  c4 {[%clk 0:01:35]} 30. Bd4 {[%clk 0:00:29]}  Qf4 {[%clk 0:01:32]} 31. bxc4 {[%clk 0:00:20]}  Rxc4 {[%clk 0:01:33]} 32. Qa1 {[%clk 0:00:13]}  Rc1+ {[%clk 0:01:31]} 0-1


[Site "https://www.chess.com"]

[Event "Titled Tuesday Blitz January 18 2022"]
[White "Boruchovsky, Avital"]
[Black "Milosevic, Milos"]
[WhiteFideId "2800055"]
[BlackFideId "964875"]
[WhiteElo "2469"]
[BlackElo "2198"]
[Result "0-1"]
[Round "01"]
[TimeControl "180+1"]
[Date "2022.01.18"]
[WhiteClock "0:01:28"]
[BlackClock "0:00:47"]

1. c4 {[%clk 0:02:56]}  Nf6 {[%clk 0:02:58]} 2. Nc3 {[%clk 0:02:56]}  e6 {[%clk 0:02:57]} 3. e4 {[%clk 0:02:54]}  d5 {[%clk 0:02:57]} 4. cxd5 {[%clk 0:02:54]}  exd5 {[%clk 0:02:58]} 5. e5 {[%clk 0:02:54]}  Nfd7 {[%clk 0:02:58]} 6. d4 {[%clk 0:02:54]}  Nb6 {[%clk 0:02:58]} 7. Nf3 {[%clk 0:02:51]}  Be7 {[%clk 0:02:57]} 8. Bd3 {[%clk 0:02:46]}  O-O {[%clk 0:02:57]} 9. h4 {[%clk 0:02:44]}  c5 {[%clk 0:02:37]} 10. dxc5 {[%clk 0:02:41]}  Bxc5 {[%clk 0:02:38]} 11. Ng5 {[%clk 0:02:36]}  h6 {[%clk 0:02:37]} 12. Bh7+ {[%clk 0:02:32]}  Kh8 {[%clk 0:02:37]} 13. Bc2 {[%clk 0:02:30]}  Qe7 {[%clk 0:02:29]} 14. Bf4 {[%clk 0:02:10]}  Nc6 {[%clk 0:02:24]} 15. Nxd5 {[%clk 0:02:03]}  Nxd5 {[%clk 0:02:23]} 16. Qxd5 {[%clk 0:02:04]}  Nb4 {[%clk 0:02:19]} 17. Qe4 {[%clk 0:02:04]}  Nxc2+ {[%clk 0:02:19]} 18. Qxc2 {[%clk 0:02:03]}  Bb4+ {[%clk 0:02:02]} 19. Kf1 {[%clk 0:02:03]}  g6 {[%clk 0:02:02]} 20. Nf3 {[%clk 0:01:55]}  Bf5 {[%clk 0:02:00]} 21. Qb3 {[%clk 0:01:52]}  Rfd8 {[%clk 0:01:56]} 22. Bxh6 {[%clk 0:01:50]}  Rd3 {[%clk 0:01:52]} 23. Qc4 {[%clk 0:01:50]}  Rc8 {[%clk 0:01:26]} 24. Qf4 {[%clk 0:01:44]}  Rc2 {[%clk 0:01:11]} 25. Bg5 {[%clk 0:01:41]}  Qc5 {[%clk 0:00:55]} 26. Bf6+ {[%clk 0:01:33]}  Kg8 {[%clk 0:00:54]} 27. Ne1 {[%clk 0:01:33]}  Bxe1 {[%clk 0:00:50]} 28. Rxe1 {[%clk 0:01:28]}  Rdd2 {[%clk 0:00:47]} 0-1


[Site "https://www.chess.com"]

[Event "Titled Tuesday Blitz January 18 2022"]
[White "Bychkov, Vladimir"]
[Black "Nigmatov, Ortik"]
[WhiteFideId "24151513"]
[BlackFideId "14202131"]
[WhiteElo "2253"]
[BlackElo "2378"]
[Result "0-1"]
[Round "01"]
[TimeControl "180+1"]
[Date "2022.01.18"]
[WhiteClock "0:00:17"]
[BlackClock "0:00:32"]

1. e4 {[%clk 0:03:00]}  c5 {[%clk 0:02:54]} 2. Nf3 {[%clk 0:03:00]}  d6 {[%clk 0:02:54]} 3. b3 {[%clk 0:03:00]}  Nc6 {[%clk 0:02:50]} 4. Bb2 {[%clk 0:03:00]}  e6 {[%clk 0:02:45]} 5. g3 {[%clk 0:02:59]}  Nf6 {[%clk 0:02:45]} 6. Bg2 {[%clk 0:03:00]}  Be7 {[%clk 0:02:45]} 7. Qe2 {[%clk 0:03:00]}  O-O {[%clk 0:02:46]} 8. O-O {[%clk 0:03:00]}  b6 {[%clk 0:02:45]} 9. a4 {[%clk 0:03:00]}  Bb7 {[%clk 0:02:46]} 10. Na3 {[%clk 0:03:00]}  e5 {[%clk 0:02:45]} 11. Nc4 {[%clk 0:02:58]}  Nd4 {[%clk 0:02:44]} 12. Bxd4 {[%clk 0:02:58]}  cxd4 {[%clk 0:02:45]} 13. Nh4 {[%clk 0:02:56]}  Rc8 {[%clk 0:02:43]} 14. d3 {[%clk 0:02:56]}  g6 {[%clk 0:02:40]} 15. f4 {[%clk 0:02:55]}  Nd7 {[%clk 0:02:38]} 16. Nf3 {[%clk 0:02:52]}  f6 {[%clk 0:02:38]} 17. h4 {[%clk 0:02:50]}  Kg7 {[%clk 0:02:37]} 18. h5 {[%clk 0:02:48]}  Nc5 {[%clk 0:02:36]} 19. f5 {[%clk 0:02:47]}  g5 {[%clk 0:02:36]} 20. Nh2 {[%clk 0:02:45]}  d5 {[%clk 0:02:33]} 21. exd5 {[%clk 0:02:44]}  Bxd5 {[%clk 0:02:34]} 22. Ng4 {[%clk 0:02:44]}  Bxg2 {[%clk 0:02:17]} 23. Qxg2 {[%clk 0:02:44]}  Qd7 {[%clk 0:02:17]} 24. Rae1 {[%clk 0:02:40]}  Rce8 {[%clk 0:02:15]} 25. b4 {[%clk 0:02:22]}  Nxa4 {[%clk 0:02:12]} 26. Ra1 {[%clk 0:02:21]}  Bd8 {[%clk 0:02:11]} 27. b5 {[%clk 0:02:16]}  Nc3 {[%clk 0:02:07]} 28. Ra6 {[%clk 0:02:00]}  Nxb5 {[%clk 0:02:04]} 29. Rfa1 {[%clk 0:01:57]}  Rf7 {[%clk 0:02:05]} 30. h6+ {[%clk 0:01:56]}  Kh8 {[%clk 0:02:04]} 31. Qh1 {[%clk 0:01:49]}  e4 {[%clk 0:02:02]} 32. dxe4 {[%clk 0:01:45]}  d3 {[%clk 0:02:03]} 33. e5 {[%clk 0:01:37]}  Qd4+ {[%clk 0:01:57]} 34. Nce3 {[%clk 0:01:35]}  dxc2 {[%clk 0:01:56]} 35. Qc6 {[%clk 0:01:34]}  Qd7 {[%clk 0:01:23]} 36. Qc4 {[%clk 0:01:26]}  fxe5 {[%clk 0:01:18]} 37. Nxc2 {[%clk 0:01:24]}  Nd6 {[%clk 0:00:57]} 38. Qc3 {[%clk 0:01:15]}  Qxf5 {[%clk 0:00:56]} 39. Nce3 {[%clk 0:01:10]}  Qf3 {[%clk 0:00:55]} 40. Kh2 {[%clk 0:01:03]}  Ne4 {[%clk 0:00:55]} 41. Qe1 {[%clk 0:00:52]}  Nf6 {[%clk 0:00:50]} 42. Rxa7 {[%clk 0:00:43]}  Nxg4+ {[%clk 0:00:45]} 43. Nxg4 {[%clk 0:00:43]}  Rxa7 {[%clk 0:00:45]} 44. Rxa7 {[%clk 0:00:39]}  Qxg4 {[%clk 0:00:45]} 45. Kg2 {[%clk 0:00:30]}  Qe6 {[%clk 0:00:41]} 46. Qe4 {[%clk 0:00:21]}  Qxh6 {[%clk 0:00:41]} 47. Qf5 {[%clk 0:00:20]}  Qg6 {[%clk 0:00:34]} 48. Qd7 {[%clk 0:00:20]}  Rf8 {[%clk 0:00:33]} 49. Kg1 {[%clk 0:00:17]}  g4 {[%clk 0:00:33]} 50. Qd5 {[%clk 0:00:17]}  Qb1+ {[%clk 0:00:32]} 51. Kg2 {[%clk 0:00:17]}  Qf1+ {[%clk 0:00:32]} 0-1


[Site "https://www.chess.com"]

[Event "Titled Tuesday Blitz January 18 2022"]
[White "Chen, Justin"]
[Black "Andreikin, Dmitry"]
[WhiteFideId "2098199"]
[BlackFideId "4158814"]
[WhiteElo "2502"]
[BlackElo "2736"]
[Result "0-1"]
[Round "01"]
[TimeControl "180+1"]
[Date "2022.01.18"]
[WhiteClock "0:00:05"]
[BlackClock "0:01:04"]

1. Nf3 {[%clk 0:03:00]}  Nf6 {[%clk 0:02:59]} 2. e3 {[%clk 0:03:00]}  c6 {[%clk 0:02:57]} 3. c4 {[%clk 0:03:01]}  e6 {[%clk 0:02:55]} 4. Nc3 {[%clk 0:03:02]}  a6 {[%clk 0:02:53]} 5. b3 {[%clk 0:03:00]}  d5 {[%clk 0:02:53]} 6. Bb2 {[%clk 0:02:59]}  Nbd7 {[%clk 0:02:53]} 7. d4 {[%clk 0:02:59]}  Bd6 {[%clk 0:02:53]} 8. Bd3 {[%clk 0:02:58]}  O-O {[%clk 0:02:52]} 9. O-O {[%clk 0:02:58]}  e5 {[%clk 0:02:52]} 10. cxd5 {[%clk 0:02:57]}  cxd5 {[%clk 0:02:51]} 11. dxe5 {[%clk 0:02:55]}  Nxe5 {[%clk 0:02:51]} 12. Be2 {[%clk 0:02:55]}  Be6 {[%clk 0:02:50]} 13. Rc1 {[%clk 0:02:54]}  Rc8 {[%clk 0:02:49]} 14. Qd2 {[%clk 0:02:49]}  Ne4 {[%clk 0:02:37]} 15. Nxe4 {[%clk 0:01:53]}  Nxf3+ {[%clk 0:02:37]} 16. Bxf3 {[%clk 0:01:54]}  dxe4 {[%clk 0:02:37]} 17. Qd4 {[%clk 0:01:55]}  Bxh2+ {[%clk 0:02:36]} 18. Kxh2 {[%clk 0:01:54]}  Qxd4 {[%clk 0:02:35]} 19. Bxd4 {[%clk 0:01:54]}  exf3 {[%clk 0:02:35]} 20. gxf3 {[%clk 0:01:55]}  f6 {[%clk 0:02:34]} 21. Rfd1 {[%clk 0:01:43]}  Kf7 {[%clk 0:02:34]} 22. Bb6 {[%clk 0:01:36]}  h5 {[%clk 0:02:31]} 23. Kg2 {[%clk 0:01:22]}  h4 {[%clk 0:02:27]} 24. e4 {[%clk 0:00:33]}  g5 {[%clk 0:02:24]} 25. Rxc8 {[%clk 0:00:30]}  Rxc8 {[%clk 0:02:24]} 26. Rd8 {[%clk 0:00:30]}  h3+ {[%clk 0:02:19]} 27. Kg3 {[%clk 0:00:27]}  Rc1 {[%clk 0:02:18]} 28. Rb8 {[%clk 0:00:23]}  Bc8 {[%clk 0:01:56]} 29. Kh2 {[%clk 0:00:22]}  Ke8 {[%clk 0:01:40]} 30. a4 {[%clk 0:00:21]}  Kd7 {[%clk 0:01:37]} 31. b4 {[%clk 0:00:20]}  Rc3 {[%clk 0:01:34]} 32. Be3 {[%clk 0:00:15]}  Rc4 {[%clk 0:01:24]} 33. b5 {[%clk 0:00:14]}  Rxa4 {[%clk 0:01:24]} 34. bxa6 {[%clk 0:00:12]}  Rxa6 {[%clk 0:01:25]} 35. f4 {[%clk 0:00:10]}  Kc7 {[%clk 0:01:09]} 36. Rxc8+ {[%clk 0:00:10]}  Kxc8 {[%clk 0:01:09]} 37. f5 {[%clk 0:00:10]}  g4 {[%clk 0:01:05]} 38. Kg3 {[%clk 0:00:05]}  Ra3 {[%clk 0:01:04]} 0-1


[Site "https://www.chess.com"]

[Event "Titled Tuesday Blitz January 18 2022"]
[White "Chigaev, Maksim"]
[Black "Lewicki, Miroslaw"]
[WhiteFideId "4108116"]
[BlackFideId "1113380"]
[WhiteElo "2502"]
[BlackElo "2283"]
[Result "1-0"]
[Round "01"]
[TimeControl "180+1"]
[Date "2022.01.18"]
[WhiteClock "0:00:32"]
[BlackClock "0:00:08"]

1. Nf3 {[%clk 0:02:59]}  c5 {[%clk 0:02:57]} 2. e4 {[%clk 0:02:57]}  d6 {[%clk 0:02:56]} 3. c3 {[%clk 0:02:55]}  Nf6 {[%clk 0:02:55]} 4. g3 {[%clk 0:02:56]}  g6 {[%clk 0:02:54]} 5. Bg2 {[%clk 0:02:56]}  Bg7 {[%clk 0:02:55]} 6. O-O {[%clk 0:02:56]}  O-O {[%clk 0:02:55]} 7. Re1 {[%clk 0:02:56]}  e5 {[%clk 0:02:44]} 8. d3 {[%clk 0:02:54]}  Nc6 {[%clk 0:02:44]} 9. a4 {[%clk 0:02:54]}  h6 {[%clk 0:02:43]} 10. Na3 {[%clk 0:02:54]}  Be6 {[%clk 0:02:42]} 11. Nc4 {[%clk 0:02:42]}  a6 {[%clk 0:02:37]} 12. Nfd2 {[%clk 0:02:35]}  b5 {[%clk 0:02:29]} 13. Ne3 {[%clk 0:02:30]}  b4 {[%clk 0:02:11]} 14. Ndc4 {[%clk 0:02:27]}  Rb8 {[%clk 0:02:10]} 15. a5 {[%clk 0:02:25]}  Rb5 {[%clk 0:01:55]} 16. Qa4 {[%clk 0:02:24]}  d5 {[%clk 0:01:41]} 17. exd5 {[%clk 0:02:19]}  Nxd5 {[%clk 0:01:41]} 18. Bd2 {[%clk 0:02:17]}  bxc3 {[%clk 0:01:19]} 19. bxc3 {[%clk 0:02:13]}  Nxe3 {[%clk 0:00:57]} 20. Bxe3 {[%clk 0:02:06]}  Qxd3 {[%clk 0:00:49]} 21. Bxc6 {[%clk 0:01:58]}  Bxc4 {[%clk 0:00:47]} 22. Rad1 {[%clk 0:01:39]}  Qxc3 {[%clk 0:00:35]} 23. Rc1 {[%clk 0:01:39]}  Bb3 {[%clk 0:00:32]} 24. Rxc3 {[%clk 0:01:17]}  Bxa4 {[%clk 0:00:31]} 25. Bxb5 {[%clk 0:01:17]}  Bxb5 {[%clk 0:00:32]} 26. Rxc5 {[%clk 0:01:15]}  f5 {[%clk 0:00:23]} 27. Rec1 {[%clk 0:01:14]}  f4 {[%clk 0:00:22]} 28. Bd2 {[%clk 0:01:13]}  fxg3 {[%clk 0:00:22]} 29. hxg3 {[%clk 0:01:13]}  e4 {[%clk 0:00:21]} 30. Rc8 {[%clk 0:01:10]}  h5 {[%clk 0:00:17]} 31. Bb4 {[%clk 0:01:05]}  Rxc8 {[%clk 0:00:16]} 32. Rxc8+ {[%clk 0:01:06]}  Kh7 {[%clk 0:00:15]} 33. Rc7 {[%clk 0:01:03]}  Kg8 {[%clk 0:00:15]} 34. Rc8+ {[%clk 0:00:56]}  Kh7 {[%clk 0:00:14]} 35. Bc3 {[%clk 0:00:57]}  Bxc3 {[%clk 0:00:13]} 36. Rxc3 {[%clk 0:00:58]}  Kh6 {[%clk 0:00:12]} 37. Rc5 {[%clk 0:00:57]}  Bd3 {[%clk 0:00:09]} 38. Kg2 {[%clk 0:00:37]}  g5 {[%clk 0:00:08]} 39. Rd5 {[%clk 0:00:34]}  Kg7 {[%clk 0:00:08]} 40. Rxg5+ {[%clk 0:00:33]}  Kh6 {[%clk 0:00:08]} 41. Rd5 {[%clk 0:00:33]}  Kg6 {[%clk 0:00:08]} 42. Kh3 {[%clk 0:00:32]} 1-0


[Site "https://www.chess.com"]

[Event "Titled Tuesday Blitz January 18 2022"]
[White "Costachi, Mihnea"]
[Black "Santos Flores, Alberto"]
[WhiteFideId "1217518"]
[BlackFideId "3601234"]
[WhiteElo "2464"]
[BlackElo "2293"]
[Result "1-0"]
[Round "01"]
[TimeControl "180+1"]
[Date "2022.01.18"]
[WhiteClock "0:01:27"]
[BlackClock "0:00:40"]

1. e4 {[%clk 0:03:00]}  c5 {[%clk 0:02:56]} 2. Nf3 {[%clk 0:02:57]}  g6 {[%clk 0:02:56]} 3. Bc4 {[%clk 0:02:56]}  Bg7 {[%clk 0:02:56]} 4. O-O {[%clk 0:02:57]}  Nc6 {[%clk 0:02:55]} 5. Re1 {[%clk 0:02:57]}  e6 {[%clk 0:02:53]} 6. c3 {[%clk 0:02:56]}  Nge7 {[%clk 0:02:53]} 7. e5 {[%clk 0:02:53]}  d6 {[%clk 0:02:44]} 8. exd6 {[%clk 0:02:47]}  Qxd6 {[%clk 0:02:44]} 9. d3 {[%clk 0:02:47]}  O-O {[%clk 0:02:43]} 10. Nbd2 {[%clk 0:02:47]}  Qc7 {[%clk 0:02:40]} 11. Ne4 {[%clk 0:02:46]}  Nd5 {[%clk 0:02:32]} 12. Nxc5 {[%clk 0:02:42]}  Na5 {[%clk 0:02:21]} 13. Bxd5 {[%clk 0:02:39]}  exd5 {[%clk 0:02:21]} 14. Nb3 {[%clk 0:02:40]}  Nc6 {[%clk 0:02:19]} 15. Bg5 {[%clk 0:02:38]}  Bf5 {[%clk 0:02:12]} 16. Qd2 {[%clk 0:02:33]}  Rfe8 {[%clk 0:02:10]} 17. h3 {[%clk 0:02:33]}  b6 {[%clk 0:02:04]} 18. d4 {[%clk 0:02:23]}  a5 {[%clk 0:01:58]} 19. Rxe8+ {[%clk 0:02:23]}  Rxe8 {[%clk 0:01:56]} 20. Re1 {[%clk 0:02:24]}  Qd7 {[%clk 0:01:53]} 21. Rxe8+ {[%clk 0:02:22]}  Qxe8 {[%clk 0:01:54]} 22. Qe3 {[%clk 0:02:22]}  Qxe3 {[%clk 0:01:51]} 23. Bxe3 {[%clk 0:02:15]}  Bb1 {[%clk 0:01:41]} 24. a3 {[%clk 0:02:12]}  a4 {[%clk 0:01:40]} 25. Nbd2 {[%clk 0:02:11]}  Bd3 {[%clk 0:01:39]} 26. Ne1 {[%clk 0:02:10]}  Bf5 {[%clk 0:01:36]} 27. g4 {[%clk 0:02:09]}  Be6 {[%clk 0:01:34]} 28. Nd3 {[%clk 0:02:08]}  Na5 {[%clk 0:01:30]} 29. Bf4 {[%clk 0:02:05]}  b5 {[%clk 0:01:29]} 30. Bc7 {[%clk 0:01:57]}  Nb7 {[%clk 0:01:20]} 31. f4 {[%clk 0:01:53]}  h5 {[%clk 0:01:17]} 32. f5 {[%clk 0:01:52]}  gxf5 {[%clk 0:01:15]} 33. gxh5 {[%clk 0:01:53]}  Bh6 {[%clk 0:01:13]} 34. Bf4 {[%clk 0:01:52]}  Bxf4 {[%clk 0:01:12]} 35. Nxf4 {[%clk 0:01:53]}  Nd6 {[%clk 0:01:12]} 36. Kf2 {[%clk 0:01:50]}  Kg7 {[%clk 0:01:10]} 37. h4 {[%clk 0:01:45]}  Kh6 {[%clk 0:01:02]} 38. Ke3 {[%clk 0:01:45]}  Ne4 {[%clk 0:01:00]} 39. Nf3 {[%clk 0:01:37]}  Nf6 {[%clk 0:00:56]} 40. Ng5 {[%clk 0:01:36]}  Nxh5 {[%clk 0:00:54]} 41. Ngxe6 {[%clk 0:01:34]}  fxe6 {[%clk 0:00:55]} 42. Nxe6 {[%clk 0:01:34]}  Nf6 {[%clk 0:00:45]} 43. Kf4 {[%clk 0:01:34]}  Ne4 {[%clk 0:00:43]} 44. Nc7 {[%clk 0:01:34]}  Nd6 {[%clk 0:00:41]} 45. Nxd5 {[%clk 0:01:31]}  Nc4 {[%clk 0:00:41]} 46. Nc7 {[%clk 0:01:31]}  Nxb2 {[%clk 0:00:41]} 47. Kxf5 {[%clk 0:01:28]}  Nc4 {[%clk 0:00:42]} 48. Nxb5 {[%clk 0:01:28]}  Kh5 {[%clk 0:00:40]} 49. d5 {[%clk 0:01:27]}  Kxh4 {[%clk 0:00:40]} 50. d6 {[%clk 0:01:27]} 1-0


[Site "https://www.chess.com"]